bitfinex-derivatives/quotes_SOLF0:USTF0_20241103
["timestamp","ask_amount","ask_price","bid_price","bid_amount"]
[1730650059284,4.1307,160.8,160.71,1.4017]
[1730650059488,4.22,160.87,160.71,1.4017]
[1730650059686,2.7338,160.84,160.71,1.4017]
[1730650060388,2.7338,160.84,160.74,3.1115]
[1730650060572,2.7338,160.84,160.71,1.4017]
[1730650061488,2.7338,160.84,160.81,3.1102]
[1730650061679,2.7338,160.84,160.75,4.22]
[1730650062178,2.7338,160.84,160.71,5.6217]
[1730650062573,2.7338,160.84,160.78,3.1109]
[1730650063483,2.7338,160.84,160.79,3.1106]
[1730650063973,2.7338,160.84,160.71,5.6217]
[1730650065272,2.7338,160.84,160.78,3.1107]
[1730650066250,2.7338,160.84,160.73,4.22]
[1730650066457,2.7338,160.84,160.79,3.1106]
[1730650066748,1.3212,160.84,160.73,4.22]
[1730650068361,1.3212,160.84,160.81,3.1103]
[1730650068655,1.3212,160.84,160.73,4.22]
[1730650069560,1.3212,160.84,160.8,3.1103]
[1730650069860,3.04991653,160.9,160.71,1.4017]
[1730650069861,3.13609798,160.99,160.78,4.22]
[1730650070067,3.13609798,160.99,160.69,8.9284]
[1730650070068,26.9324,160.96,160.79,5.5005]
[1730650070755,26.9324,160.96,160.84,3.1095]
[1730650071551,26.9324,160.96,160.79,1.2805]
[1730650071865,1.0,160.95,160.79,1.2805]
[1730650072064,1.0,160.95,160.81,3.1102]
[1730650072356,18.73,160.93,160.79,1.2805]
[1730650072764,18.73,160.93,160.84,3.1096]
[1730650072958,3.1085,160.91,160.84,3.1096]
[1730650073148,18.73,160.93,160.84,3.1096]
[1730650073861,3.1091,160.88,160.84,3.1096]
[1730650074463,3.1091,160.88,160.79,1.2805]
[1730650074464,3.1088,160.89,160.85,3.1094]
[1730650074661,3.1088,160.89,160.79,1.2805]
[1730650074848,3.1088,160.89,160.85,3.1094]
[1730650075472,3.1087,160.9,160.8,4.22]
[1730650075993,18.73,160.92,160.82,3.1101]
[1730650076201,18.73,160.92,160.79,4.22]
[1730650076621,18.73,160.9,160.79,4.22]
[1730650076795,3.07049769,160.89,160.79,4.22]
[1730650076981,3.1093,160.86,160.81,3.1102]
[1730650077295,1.3286,160.88,160.79,4.22]
[1730650077594,1.0,160.91,160.79,4.22]
[1730650077900,4.0016,160.98,160.8,4.22]
[1730650078189,3.1082,160.92,160.87,3.1089]
[1730650078397,18.73,160.97,160.8,4.22]
[1730650078783,3.1081,160.93,160.8,4.22]
[1730650080087,18.73,160.97,160.83,3.1099]
[1730650080305,18.73,160.95,160.82,4.22]
[1730650080484,22.95,160.96,160.82,4.22]
[1730650080891,4.22,160.96,160.82,4.22]
[1730650081097,4.22,160.96,160.83,1.3677]
[1730650081382,3.1078,160.94,160.83,1.3677]
[1730650081789,4.0016,160.98,160.83,1.3677]
[1730650082082,4.0016,160.98,160.84,1.335]
[1730650083375,3.1075,160.96,160.91,3.1082]
[1730650083582,4.0016,160.98,160.87,4.22]
[1730650084080,7.1088,160.98,160.94,3.1077]
[1730650084487,4.0016,160.98,160.87,4.22]
[1730650085064,4.0016,160.98,160.85,4.22]
[1730650085473,3.1077,160.95,160.9,3.1084]
[1730650085769,4.0016,160.98,160.9,3.1084]
[1730650085954,3.1076,160.96,160.91,3.1083]
[1730650086158,3.1076,160.96,160.85,4.22]
[1730650086352,4.0016,160.98,160.85,4.22]
[1730650087165,7.1087,160.98,160.94,3.1077]
[1730650087468,4.26,161.07,160.89,4.26]
[1730650087668,1.364,161.01,160.9,4.26]
[1730650087858,1.364,161.01,160.91,4.76]
[1730650088265,1.364,161.01,161.0,3.1066]
[1730650088560,1.364,161.01,160.92,1.4116]
[1730650088962,4.4705,161.01,160.97,3.1071]
[1730650089159,1.364,161.01,160.92,1.4116]
[1730650089367,3.1069,160.99,160.95,3.1076]
[1730650089769,3.1069,160.99,160.91,4.76]
[1730650089770,18.73,161.17,160.91,10.9766]
[1730650090069,23.46,161.24,160.92,2.6138]
[1730650090070,2.6649,161.12,160.92,2.6138]
[1730650090271,1.364,161.12,160.92,2.6138]
[1730650090967,1.364,161.12,160.95,6.2152]
[1730650091167,5.06,161.34,160.92,2.6138]
[1730650091368,3.9636,161.22,161.1,3.1046]
[1730650091561,5.06,161.21,160.99,5.06]
[1730650091760,18.73,161.2,161.0,1.3349]
[1730650092172,18.73,161.2,161.08,3.105]
[1730650092370,5.06,161.19,161.0,1.3349]
[1730650092960,5.06,161.2,161.0,1.3349]
[1730650093163,7.066,161.22,161.16,3.1035]
[1730650093383,3.9636,161.22,161.08,5.06]
[1730650093675,7.0661,161.22,161.15,3.1037]
[1730650093869,3.9636,161.22,161.08,5.06]
[1730650094669,7.0662,161.22,161.14,3.1038]
[1730650094865,3.9636,161.22,161.08,5.06]
[1730650095778,3.103,161.19,161.13,3.1041]
[1730650095969,3.9636,161.22,161.06,5.06]
[1730650096475,22.6936,161.22,161.06,5.06]
[1730650096677,3.9636,161.22,161.06,5.06]
[1730650096871,22.6936,161.22,161.06,5.06]
[1730650097078,22.6936,161.22,160.86,6.2187]
[1730650097280,22.6936,161.22,160.87,5.06]
[1730650097485,3.1043,161.12,161.06,3.1054]
[1730650097679,5.06,161.13,160.97,5.06]
[1730650097974,1.3403,161.11,160.98,2.7424]
[1730650098182,2.772,161.12,160.98,4.0943]
[1730650098376,1.3882,161.12,160.98,4.0943]
[1730650098675,1.3882,161.12,161.08,3.105]
[1730650098874,1.3882,161.12,160.98,4.0943]
[1730650099279,1.3115,161.11,161.04,3.1057]
[1730650099576,1.3115,161.11,160.98,9.1543]
[1730650100083,4.4162,161.11,161.05,3.1056]
[1730650100278,1.3115,161.11,161.05,3.1056]
[1730650100669,3.1047,161.1,161.05,3.1056]
[1730650100981,1.3115,161.11,161.01,3.1063]
[1730650101179,1.3115,161.11,160.98,4.0943]
[1730650101479,1.4002,161.1,161.03,3.106]
[1730650101780,1.4002,161.1,160.98,7.8024]
[1730650102872,4.505,161.1,161.05,3.1055]
[1730650103079,1.4002,161.1,160.98,7.8024]
[1730650103377,1.4002,161.1,160.99,3.1066]
[1730650103689,3.1058,161.05,160.94,5.06]
[1730650103890,5.06,161.05,160.9,2.6465]
[1730650104194,1.3575,161.04,160.9,2.6465]
[1730650104381,1.3575,161.04,160.94,3.1077]
[1730650104573,1.3575,161.04,160.9,1.3187]
[1730650104574,1.3899,161.03,160.9,1.3187]
[1730650106481,3.1063,161.02,160.9,1.3187]
[1730650106675,1.3899,161.03,160.9,1.3187]
[1730650107083,4.496,161.03,160.9,1.3187]
[1730650107285,1.3899,161.03,160.9,1.3187]
[1730650107586,1.3575,161.04,160.9,1.3187]
[1730650107979,1.3575,161.04,160.99,3.1067]
[1730650108280,4.4635,161.04,160.95,5.06]
[1730650108472,3.106,161.04,160.95,5.06]
[1730650108679,3.1051,161.09,161.04,3.1057]
[1730650109074,2.6785,161.15,161.05,3.1056]
[1730650109280,3.1045,161.12,161.01,5.06]
[1730650109480,2.6785,161.15,161.01,5.06]
[1730650109775,2.6785,161.15,161.06,3.1053]
[1730650110583,3.1045,161.12,161.07,3.1052]
[1730650110787,2.6785,161.15,160.96,1.3338]
[1730650110979,2.6785,161.15,160.97,5.06]
[1730650111176,2.6785,161.15,160.98,1.3353]
[1730650111381,2.6785,161.15,160.98,2.6582]
[1730650112385,2.6785,161.15,160.99,5.06]
[1730650112587,3.1051,161.08,160.99,5.06]
[1730650113183,3.1051,161.08,161.04,3.1057]
[1730650113391,3.1049,161.09,160.99,5.06]
[1730650113786,23.79,161.14,160.99,5.06]
[1730650114087,23.79,161.14,160.98,2.6582]
[1730650114088,23.79,161.14,160.98,1.3353]
[1730650114292,23.79,161.14,161.0,3.1065]
[1730650114489,3.1059,161.04,161.0,3.1065]
[1730650114692,1.0,161.13,161.03,3.1059]
[1730650114878,23.79,161.12,160.96,6.3938]
[1730650115080,23.79,161.12,160.9,5.06]
[1730650115488,1.0,161.11,160.9,5.06]
[1730650115689,3.1066,161.01,160.93,3.1079]
[1730650115887,5.06,161.06,160.9,5.06]
[1730650116190,22.7465,161.05,160.9,5.06]
[1730650116393,22.7465,161.05,160.79,9.32588602]
[1730650116580,22.7465,161.05,160.8,1.2931]
[1730650116781,3.1078,160.95,160.9,3.1084]
[1730650116977,5.06,160.99,160.83,5.06]
[1730650117177,3.107,160.98,160.83,5.06]
[1730650117384,5.06,161.01,160.93,3.1078]
[1730650117581,5.06,161.01,160.83,5.06]
[1730650118201,18.73,161.17,160.83,5.06]
[1730650118384,3.106,161.04,160.83,5.06]
[1730650118585,18.73,161.09,160.83,5.06]
[1730650118780,3.1063,161.02,160.97,3.107]
[1730650119081,3.1063,161.02,160.83,11.2798]
[1730650119082,3.1063,161.02,160.92,5.06]
[1730650119285,5.06,161.1,160.8,3.9934]
[1730650119286,1.4093,161.11,160.91,5.06]
[1730650119486,3.1052,161.08,161.03,3.1059]
[1730650119687,3.1052,161.08,160.96,5.06]
[1730650119992,3.1056,161.06,160.96,5.06]
[1730650120388,3.1056,161.06,160.92,2.6761]
[1730650120389,6.4693,161.11,160.95,5.06]
[1730650120588,3.1056,161.06,161.01,3.1064]
[1730650120791,25.1993,161.11,161.01,3.1064]
[1730650120990,3.1062,161.03,160.92,2.6761]
[1730650121304,3.1062,161.03,160.93,5.32]
[1730650121594,25.1993,161.11,160.98,3.107]
[1730650121783,25.1993,161.11,160.93,5.32]
[1730650122189,3.1058,161.05,161.01,3.1064]
[1730650122396,5.32,161.08,160.94,6.2155]
[1730650122787,5.32,161.08,161.04,3.1057]
[1730650123690,8.4252,161.08,161.04,3.1057]
[1730650124089,5.32,161.08,161.01,3.1063]
[1730650124394,3.1056,161.06,161.01,3.1063]
[1730650124695,5.32,161.08,160.95,5.32]
[1730650124889,5.32,161.08,160.92,2.6761]
[1730650125085,24.05,161.08,160.92,2.6761]
[1730650125298,24.05,161.08,160.98,3.1069]
[1730650125495,3.1062,161.03,160.92,2.6761]
[1730650125904,24.05,161.08,160.98,3.1069]
[1730650126103,24.05,161.08,160.92,2.6761]
[1730650126302,1.4093,161.11,160.92,2.6761]
[1730650126501,3.1056,161.06,160.92,2.6761]
[1730650126701,5.32,161.09,160.92,2.6761]
[1730650127207,24.05,161.09,160.92,2.6761]
[1730650128114,3.1057,161.05,161.01,3.1064]
[1730650128998,24.05,161.09,160.92,2.6761]
[1730650128999,3.1061,161.03,160.97,3.1072]
[1730650129215,24.05,161.09,160.92,7.9961]
[1730650129809,3.106,161.04,161.0,3.1065]
[1730650130311,1.4093,161.11,160.92,7.9961]
[1730650130509,5.32,161.1,160.92,7.9961]
[1730650130712,1.4093,161.11,160.92,7.9961]
[1730650130713,1.4093,161.11,160.93,6.216]
[1730650130911,1.4093,161.11,160.92,7.9961]
[1730650130912,5.32,161.1,160.92,7.9961]
[1730650131412,3.1051,161.08,160.94,6.2153]
[1730650132006,3.1051,161.08,161.04,3.1058]
[1730650132209,3.1053,161.07,161.04,3.1058]
[1730650135115,5.32,161.1,160.94,6.2153]
[1730650135423,3.1056,161.06,161.02,3.1061]
[1730650135616,3.1056,161.06,160.94,6.2153]
[1730650135807,3.1056,161.06,161.03,3.106]
[1730650136518,3.1056,161.06,161.02,3.1062]
[1730650136714,5.32,161.09,160.92,7.9961]
[1730650136715,24.05,161.09,160.92,2.6761]
[1730650136914,1.4075,161.05,160.99,3.1067]
[1730650137222,1.4075,161.05,160.92,7.9961]
[1730650137627,3.106,161.04,161.0,3.1065]
[1730650137811,1.4075,161.05,161.0,3.1065]
[1730650138315,1.4075,161.05,160.92,7.9961]
[1730650138522,3.1061,161.03,160.99,3.1067]
[1730650138916,1.4075,161.05,160.89,7.5138]
[1730650139112,3.1065,161.01,160.9,7.6213]
[1730650139513,3.1065,161.01,160.97,3.1071]
[1730650139826,3.1068,161.0,160.9,2.6213]
[1730650140011,7.6313,161.04,160.96,3.1073]
[1730650140322,7.6313,161.04,160.9,2.6213]
[1730650140829,26.3613,161.04,160.82,5.0]
[1730650141030,26.3613,161.04,160.84,1.3244]
[1730650141216,1.0,161.03,160.8,1.3714]
[1730650141423,18.73,161.01,160.74,2.633]
[1730650141922,18.73,160.99,160.81,3.1102]
[1730650142119,6.2134,161.0,160.74,2.633]
[1730650142120,18.73,160.97,160.74,2.633]
[1730650142325,1.3128,160.96,160.79,3.1105]
[1730650142521,3.1099,160.84,160.79,3.1105]
[1730650142723,5.0,160.86,160.79,3.1105]
[1730650143025,5.0,160.89,160.83,3.1098]
[1730650143212,3.1092,160.87,160.74,2.633]
[1730650143420,23.73,160.89,160.79,3.1106]
[1730650143622,3.1096,160.85,160.74,2.633]
[1730650144127,5.0,160.89,160.74,2.633]
[1730650144311,3.1091,160.88,160.74,2.633]
[1730650144924,3.1088,160.89,160.84,3.1096]
[1730650145131,3.1088,160.89,160.74,2.633]
[1730650145619,3.1092,160.87,160.82,3.11]
[1730650145820,3.1092,160.87,160.74,2.633]
[1730650146025,5.0,160.9,160.74,2.633]
[1730650146218,5.0,160.9,160.84,3.1097]
[1730650147430,3.1088,160.89,160.84,3.1097]
[1730650148230,3.1094,160.86,160.82,3.11]
[1730650148428,5.02,160.91,160.77,5.02]
[1730650149034,3.1089,160.89,160.84,3.1097]
[1730650149825,3.1084,160.91,160.87,3.109]
[1730650150026,2.6355,160.95,160.78,4.55868791]
[1730650151134,3.1078,160.94,160.89,3.1086]
[1730650151637,3.1078,160.94,160.9,3.1085]
[1730650151850,2.6355,160.95,160.83,5.02]
[1730650152340,2.6355,160.95,160.87,3.109]
[1730650152845,2.6355,160.95,160.88,3.1089]
[1730650153022,2.6355,160.95,160.83,5.02]
[1730650153023,3.1079,160.94,160.83,5.02]
[1730650153223,2.6355,160.95,160.83,5.02]
[1730650153845,3.1082,160.92,160.88,3.1088]
[1730650154031,5.02,161.03,160.83,5.02]
[1730650154230,3.1064,161.02,160.97,3.1071]
[1730650154542,5.02,161.03,160.97,3.1071]
[1730650154739,3.1066,161.01,160.97,3.1071]
[1730650154932,5.02,161.03,160.96,3.1073]
[1730650155336,22.8483,161.04,160.89,5.02]
[1730650155337,4.1183,161.04,160.89,5.02]
[1730650156046,7.2242,161.04,161.0,3.1065]
[1730650156259,4.1183,161.04,160.89,5.02]
[1730650156459,4.1183,161.04,160.93,3.1079]
[1730650156749,4.1183,161.04,160.94,1.3584]
[1730650156935,4.1183,161.04,160.95,5.02]
[1730650157535,7.2242,161.04,161.0,3.1065]
[1730650158545,4.1183,161.04,160.94,6.3784]
[1730650158735,6.2085,161.13,160.94,6.3784]
[1730650158736,18.73,161.11,160.94,6.3784]
[1730650159050,2.6904,161.1,160.94,6.3784]
[1730650159246,2.6904,161.1,160.95,2.658]
[1730650159547,7.7104,161.1,161.03,3.106]
[1730650159749,7.7104,161.1,160.95,2.658]
[1730650160647,3.1056,161.06,160.95,2.658]
[1730650161042,3.1059,161.04,161.0,3.1066]
[1730650161240,7.7104,161.1,160.95,2.658]
[1730650161636,3.1057,161.05,161.01,3.1064]
[1730650162145,2.6904,161.1,161.0,5.0]
[1730650163045,41.94446865,161.17,161.0,5.0]
[1730650163251,46.01366865,161.17,161.1,3.1045]
[1730650163432,4.0692,161.17,161.0,5.0]
[1730650164132,3.1036,161.16,161.12,3.1043]
[1730650164450,2.7549,161.17,161.07,5.0]
[1730650164636,3.1039,161.15,161.11,3.1045]
[1730650165146,3.1047,161.11,161.06,3.1054]
[1730650165344,5.0,161.15,161.03,5.0]
[1730650165856,5.0,161.15,161.05,3.1055]
[1730650166035,23.73,161.15,161.0,5.0]
[1730650166237,23.73,161.15,161.03,3.1059]
[1730650166446,23.73,161.15,161.0,5.0]
[1730650168145,3.1049,161.1,161.05,3.1055]
[1730650168344,5.0,161.14,161.0,5.0]
[1730650168543,1.3528,161.13,161.0,5.0]
[1730650168743,3.1054,161.07,161.03,3.106]
[1730650169047,1.3528,161.13,161.0,5.0]
[1730650169862,3.1055,161.06,161.02,3.1061]
[1730650170151,3.1055,161.06,161.0,5.0]
[1730650170152,23.2663992,161.13,161.0,5.0]
[1730650170455,1.3528,161.13,161.0,5.0]
[1730650171047,4.4571,161.13,161.03,3.1059]
[1730650171240,1.3528,161.13,161.0,5.0]
[1730650171751,3.1047,161.11,161.06,3.1053]
[1730650172152,3.1047,161.11,161.01,4.76]
[1730650172748,1.3528,161.13,161.01,4.76]
[1730650173145,1.3528,161.13,161.04,3.1057]
[1730650173346,1.3528,161.13,161.01,4.76]
[1730650173548,3.1043,161.12,161.02,1.3901]
[1730650173759,1.3528,161.13,161.09,3.1049]
[1730650174075,4.76,161.12,160.95,2.658]
[1730650174256,18.73,161.11,161.01,3.1063]
[1730650174565,4.76,161.12,160.96,1.3887]
[1730650174859,4.76,161.12,161.0,4.76]
[1730650175046,3.1047,161.11,161.0,4.76]
[1730650176241,3.1047,161.11,161.06,3.1053]
[1730650177456,3.1048,161.1,161.06,3.1053]
[1730650177649,1.3528,161.13,161.0,4.76]
[1730650178054,1.3528,161.13,161.11,3.1044]
[1730650178246,1.3528,161.13,161.0,4.76]
[1730650179158,1.3528,161.13,161.1,3.1047]
[1730650180962,4.4571,161.13,161.1,3.1047]
[1730650181161,1.3528,161.13,161.04,4.76]
[1730650181470,3.1051,161.08,161.04,3.1057]
[1730650181758,1.3528,161.13,161.0,4.76]
[1730650182154,3.1049,161.09,161.0,4.76]
[1730650182657,3.1049,161.09,161.06,3.1054]
[1730650182859,3.1049,161.09,161.0,4.76]
[1730650183063,3.1054,161.07,160.96,1.3887]
[1730650183262,3.1054,161.07,161.03,3.1059]
[1730650183468,2.6133,161.08,160.96,1.3887]
[1730650183759,2.6133,161.08,161.01,3.1063]
[1730650183760,3.1057,161.05,161.01,3.1063]
[1730650183967,3.1057,161.05,160.96,6.1487]
[1730650184158,3.1055,161.06,160.96,6.1487]
[1730650184457,4.76,161.06,160.82,12.4405]
[1730650184654,3.1062,161.03,160.89,8.7034]
[1730650184855,1.391,161.05,161.0,3.1066]
[1730650185757,3.1062,161.03,160.98,3.1069]
[1730650185962,3.1062,161.03,160.89,8.7034]
[1730650186165,1.391,161.05,160.89,8.7034]
[1730650186364,1.391,161.05,160.9,6.2171]
[1730650186568,2.6133,161.08,160.89,8.7034]
[1730650186569,6.1977,161.41,160.99,18.7]
[1730650186766,2.7065,161.26,161.0,53.5449]
[1730650186967,3.1024,161.22,161.0,56.71576356]
[1730650187259,1.2764,161.25,161.0,75.41576356]
[1730650187464,1.2764,161.25,161.17,3.1032]
[1730650187657,1.2764,161.25,161.1,4.76]
[1730650187861,1.2764,161.25,161.09,4.76]
[1730650188366,4.76,161.24,161.1,1.414]
[1730650188560,4.76,161.24,161.1,4.0863]
[1730650188561,7.8621,161.24,161.1,4.0863]
[1730650188759,4.76,161.24,161.1,4.0863]
[1730650189563,4.76,161.23,161.1,4.0863]
[1730650189767,4.76,161.24,161.1,4.0863]
[1730650189970,1.2764,161.25,161.1,4.0863]
[1730650190166,1.2764,161.25,161.17,3.1032]
[1730650190369,4.74,161.24,161.17,3.1032]
[1730650190866,4.74,161.24,161.15,3.1036]
[1730650191370,3.1024,161.22,161.15,3.1036]
[1730650191566,1.2764,161.25,161.1,4.0863]
[1730650191765,1.2764,161.25,161.1,7.17930431]
[1730650193263,3.1015,161.27,161.1,7.17930431]
[1730650194462,3.1015,161.27,161.15,3.1037]
[1730650194671,3.1015,161.27,161.16,4.74]
[1730650195070,7.3828,161.31,161.16,4.74]
[1730650195071,2.6428,161.31,161.16,4.74]
[1730650195260,41.90881779,161.32,161.16,4.74]
[1730650195460,3.102,161.25,161.11,52.14009456]
[1730650195675,3.102,161.25,161.2,3.1028]
[1730650196576,43.23341779,161.32,161.19,3.1029]
[1730650196766,43.23341779,161.32,161.11,52.14009456]
[1730650196975,3.102,161.25,161.2,3.1028]
[1730650197278,4.74,161.31,161.11,56.88009456]
[1730650197464,4.74,161.31,161.11,60.02484721]
[1730650197669,3.1022,161.24,161.19,3.1029]
[1730650197867,3.1022,161.24,161.11,60.02484721]
[1730650198074,4.74,161.31,161.11,60.02484721]
[1730650198277,3.1022,161.24,161.19,3.1029]
[1730650198580,4.84,161.25,161.11,56.88009456]
[1730650198971,4.84,161.25,161.16,3.1034]
[1730650198972,3.1026,161.21,161.16,3.1034]
[1730650199373,3.1026,161.21,161.11,56.98009456]
[1730650199569,1.2757,161.24,161.11,56.98009456]
[1730650200376,1.2757,161.24,161.11,52.14009456]
[1730650200576,1.2757,161.24,161.05,4.84]
[1730650201391,1.0,161.23,161.01,3.9562]
[1730650201684,18.73,161.2,161.01,3.9562]
[1730650201882,18.73,161.18,161.01,3.9562]
[1730650202072,1.2933,161.17,161.01,3.9562]
[1730650202278,18.73,161.22,161.01,3.9562]
[1730650202477,1.2933,161.2,161.02,3.08469599]
[1730650202674,1.2933,161.2,160.9,18.7]
[1730650202675,1.2933,161.2,160.94,3.06669314]
[1730650202874,1.2933,161.2,160.95,1.3078]
[1730650203076,18.73,161.19,160.95,1.3078]
[1730650203276,18.73,161.19,160.93,2.7069]
[1730650203499,3.1063,161.02,160.96,3.1072]
[1730650203792,4.84,161.05,160.93,2.7069]
[1730650204171,36.43972794,161.19,160.93,2.7069]
[1730650204380,18.73,161.13,160.93,2.7069]
[1730650204693,29.39172002,161.12,160.93,2.7069]
[1730650204873,3.106,161.04,160.98,3.107]
[1730650207487,4.84,161.06,160.95,3.1076]
[1730650207694,1.314,161.03,160.95,3.1076]
[1730650207880,1.314,161.03,160.93,1.3921]
[1730650208079,9.2602,161.03,160.97,3.1071]
[1730650208389,6.154,161.03,160.93,1.3921]
[1730650208690,1.3455,161.02,160.89,1.3523]
[1730650208987,2.6764,161.02,160.89,1.3887]
[1730650209987,2.6764,161.02,160.92,3.108]
[1730650210289,2.6764,161.02,160.89,1.3887]
[1730650210487,3.107,160.99,160.91,3.1082]
[1730650210793,2.6764,161.02,160.89,1.3887]
[1730650211580,4.84,161.01,160.89,1.3887]
[1730650211884,3.1068,160.99,160.92,3.1081]
[1730650212085,4.84,161.01,160.89,1.3887]
[1730650212288,2.6764,161.02,160.89,1.3887]
[1730650212590,3.1067,161.0,160.95,3.1075]
[1730650212781,4.84,161.01,160.95,3.1075]
[1730650213177,3.1067,161.0,160.95,3.1075]
[1730650214387,3.1067,161.0,160.96,3.1073]
[1730650214584,2.6764,161.02,160.89,1.3887]
[1730650214780,1.3455,161.02,160.89,1.3887]
[1730650214979,1.3455,161.02,160.9,4.84]
[1730650215689,1.314,161.03,160.9,4.84]
[1730650215983,18.73,161.12,160.91,16.70972794]
[1730650216187,2.6606,161.09,160.96,3.1073]
[1730650216383,3.1059,161.04,160.91,16.70972794]
[1730650216588,2.6606,161.09,160.91,16.70972794]
[1730650216791,2.6606,161.09,160.99,3.1068]
[1730650216994,3.1062,161.03,160.91,16.70972794]
[1730650217291,2.6606,161.09,160.91,16.70972794]
[1730650217589,3.1057,161.06,160.91,16.70972794]
[1730650217993,3.1057,161.06,161.01,3.1063]
[1730650218389,4.84,161.07,161.01,3.1063]
[1730650218698,4.84,161.07,161.0,3.1065]
[1730650219891,3.1061,161.03,160.99,3.1068]
[1730650220088,23.57,161.07,160.89,1.3887]
[1730650220395,1.2823,161.02,160.89,1.3887]
[1730650220591,3.1071,160.98,160.94,3.1077]
[1730650220795,6.1511,161.01,160.89,1.3887]
[1730650221185,3.107,160.99,160.94,3.1077]
[1730650221389,6.1511,161.01,160.89,1.3887]
[1730650221987,7.5658,161.01,160.89,1.3887]
[1730650222387,3.1068,160.99,160.95,3.1075]
[1730650223292,7.9468,161.0,160.95,3.1075]
[1730650223597,4.84,161.0,160.95,3.1075]
[1730650223989,3.1068,160.99,160.95,3.1075]
[1730650224193,4.84,161.0,160.89,1.3887]
[1730650224391,4.84,161.0,160.96,3.1074]
[1730650224899,4.84,161.0,160.91,3.1084]
[1730650225597,3.1075,160.96,160.92,3.1082]
[1730650226099,23.57,161.0,160.84,2.7244]
[1730650226900,3.1079,160.94,160.9,3.1085]
[1730650227099,7.9479,160.94,160.9,3.1085]
[1730650227305,4.84,160.94,160.84,1.352]
[1730650227504,4.4565,160.93,160.89,3.1086]
[1730650227894,1.3484,160.93,160.84,1.352]
[1730650228097,3.1074,160.96,160.92,3.108]
[1730650228509,1.2823,161.02,160.88,4.8]
[1730650228691,1.2823,161.02,160.9,6.2171]
[1730650228895,1.2823,161.02,160.9,9.39106358]
[1730650229091,10.5904,161.05,160.94,3.1077]
[1730650229403,7.4846,161.05,160.9,9.39106358]
[1730650229600,3.1059,161.04,161.0,3.1066]
[1730650229797,7.4846,161.05,161.0,3.1066]
[1730650230003,7.4846,161.05,160.91,16.70972794]
[1730650230303,10.5904,161.05,161.01,3.1064]
[1730650230508,7.4846,161.05,160.92,1.3831]
[1730650230806,3.1059,161.04,161.0,3.1065]
[1730650231107,7.4846,161.05,160.92,1.3831]
[1730650231108,1.3484,161.05,160.94,4.8]
[1730650231997,1.3484,161.05,161.01,3.1064]
[1730650232309,1.3484,161.05,160.94,4.8]
[1730650233296,3.1061,161.03,160.99,3.1068]
[1730650233501,1.3484,161.05,160.94,4.8]
[1730650233704,18.73,161.14,160.95,16.70972794]
[1730650233997,1.3621,161.12,160.95,16.70972794]
[1730650234493,4.4664,161.12,160.97,6.2144]
[1730650234696,1.3621,161.12,160.98,2.6097]
[1730650236305,3.1047,161.11,161.06,3.1053]